[Event "Titled Tuesday Blitz May 03 Early 2022"]
[White "Kozak, Antoni"]
[Black "Nakamura, Hikaru"]
[WhiteFideId "21832030"]
[BlackFideId "2016192"]
[WhiteElo "2236"]
[BlackElo "2850"]
[Result "0-1"]
[Round "02"]
[TimeControl "180+1"]
[Date "2022.05.03"]
[WhiteClock "0:00:03"]
[BlackClock "0:00:20"]

1. d4 {[%clk 0:03:00]}  g6 {[%clk 0:02:53]} 2. c4 {[%clk 0:02:58]}  Bg7 {[%clk 0:02:54]} 3. Nc3 {[%clk 0:02:59]}  c5 {[%clk 0:02:53]} 4. d5 {[%clk 0:02:59]}  Bxc3+ {[%clk 0:02:53]} 5. bxc3 {[%clk 0:03:00]}  f5 {[%clk 0:02:53]} 6. h4 {[%clk 0:03:00]}  Qa5 {[%clk 0:02:53]} 7. h5 {[%clk 0:02:53]}  Qxc3+ {[%clk 0:02:50]} 8. Bd2 {[%clk 0:02:53]}  Qg7 {[%clk 0:02:50]} 9. Rc1 {[%clk 0:02:51]}  d6 {[%clk 0:02:42]} 10. Nf3 {[%clk 0:02:44]}  h6 {[%clk 0:02:39]} 11. hxg6 {[%clk 0:02:39]}  Qxg6 {[%clk 0:02:39]} 12. g3 {[%clk 0:02:39]}  Nd7 {[%clk 0:02:37]} 13. Bc3 {[%clk 0:02:36]}  Ngf6 {[%clk 0:02:35]} 14. Bh3 {[%clk 0:02:36]}  Nb6 {[%clk 0:02:33]} 15. Qc2 {[%clk 0:02:28]}  Qh7 {[%clk 0:02:27]} 16. Nh4 {[%clk 0:02:22]}  f4 {[%clk 0:02:27]} 17. Bxc8 {[%clk 0:02:15]}  Rxc8 {[%clk 0:02:20]} 18. Bxf6 {[%clk 0:02:06]}  Qxc2 {[%clk 0:02:18]} 19. Rxc2 {[%clk 0:02:05]}  exf6 {[%clk 0:02:18]} 20. Ng6 {[%clk 0:02:04]}  Rh7 {[%clk 0:02:16]} 21. Nxf4 {[%clk 0:02:04]}  Kf7 {[%clk 0:02:12]} 22. e3 {[%clk 0:01:51]}  Rch8 {[%clk 0:02:08]} 23. O-O {[%clk 0:01:44]}  h5 {[%clk 0:02:07]} 24. Kh2 {[%clk 0:01:36]}  Nd7 {[%clk 0:02:06]} 25. a4 {[%clk 0:01:33]}  Ne5 {[%clk 0:02:06]} 26. Rb1 {[%clk 0:01:28]}  b6 {[%clk 0:02:04]} 27. a5 {[%clk 0:01:29]}  h4 {[%clk 0:02:04]} 28. g4 {[%clk 0:01:22]}  Nxg4+ {[%clk 0:02:05]} 29. Kh3 {[%clk 0:01:20]}  f5 {[%clk 0:02:05]} 30. axb6 {[%clk 0:01:19]}  axb6 {[%clk 0:02:04]} 31. Rxb6 {[%clk 0:01:19]}  Rh6 {[%clk 0:02:04]} 32. Rb7+ {[%clk 0:01:13]}  Kf6 {[%clk 0:02:04]} 33. Rd7 {[%clk 0:01:13]}  Ke5 {[%clk 0:01:56]} 34. Re7+ {[%clk 0:01:12]}  Kf6 {[%clk 0:01:56]} 35. Rd7 {[%clk 0:01:13]}  Ke5 {[%clk 0:01:48]} 36. Ra2 {[%clk 0:01:01]}  Ke4 {[%clk 0:01:44]} 37. Ng2 {[%clk 0:00:43]}  Ne5 {[%clk 0:01:36]} 38. Re7 {[%clk 0:00:37]}  Kd3 {[%clk 0:01:35]} 39. Nf4+ {[%clk 0:00:28]}  Kxc4 {[%clk 0:01:33]} 40. Rc2+ {[%clk 0:00:24]}  Kb3 {[%clk 0:01:32]} 41. Rc1 {[%clk 0:00:24]}  Kb2 {[%clk 0:01:30]} 42. Rg1 {[%clk 0:00:16]}  R6h7 {[%clk 0:01:23]} 43. Re6 {[%clk 0:00:16]}  Nf3 {[%clk 0:01:23]} 44. Rgg6 {[%clk 0:00:13]}  Ne5 {[%clk 0:01:23]} 45. Rg5 {[%clk 0:00:12]}  Nf7 {[%clk 0:01:18]} 46. Rxf5 {[%clk 0:00:11]}  c4 {[%clk 0:01:19]} 47. Ref6 {[%clk 0:00:09]}  Nh6 {[%clk 0:01:05]} 48. Rg5 {[%clk 0:00:08]}  Rd7 {[%clk 0:01:05]} 49. Rgg6 {[%clk 0:00:08]}  Nf7 {[%clk 0:01:02]} 50. Rg7 {[%clk 0:00:09]}  Ne5 {[%clk 0:01:02]} 51. Rxd7 {[%clk 0:00:09]}  Nxd7 {[%clk 0:01:03]} 52. Rxd6 {[%clk 0:00:09]}  Ne5 {[%clk 0:01:04]} 53. Rb6+ {[%clk 0:00:09]}  Ka3 {[%clk 0:01:01]} 54. d6 {[%clk 0:00:10]}  c3 {[%clk 0:01:01]} 55. Rb7 {[%clk 0:00:09]}  c2 {[%clk 0:01:01]} 56. Rc7 {[%clk 0:00:10]}  Kb2 {[%clk 0:01:01]} 57. Ne2 {[%clk 0:00:08]}  Rd8 {[%clk 0:00:58]} 58. Rb7+ {[%clk 0:00:08]}  Ka3 {[%clk 0:00:58]} 59. Rc7 {[%clk 0:00:09]}  Kb2 {[%clk 0:00:58]} 60. Rb7+ {[%clk 0:00:08]}  Ka2 {[%clk 0:00:53]} 61. Ra7+ {[%clk 0:00:08]}  Kb3 {[%clk 0:00:53]} 62. Rb7+ {[%clk 0:00:09]}  Kc4 {[%clk 0:00:52]} 63. f4 {[%clk 0:00:09]}  Nf3 {[%clk 0:00:46]} 64. Kg4 {[%clk 0:00:07]}  Ne1 {[%clk 0:00:43]} 65. Nc1 {[%clk 0:00:05]}  Rxd6 {[%clk 0:00:42]} 66. Rc7+ {[%clk 0:00:05]}  Kd5 {[%clk 0:00:42]} 67. Kf5 {[%clk 0:00:04]}  Rd8 {[%clk 0:00:39]} 68. e4+ {[%clk 0:00:05]}  Kd4 {[%clk 0:00:40]} 69. e5 {[%clk 0:00:04]}  h3 {[%clk 0:00:40]} 70. Rh7 {[%clk 0:00:04]}  Rf8+ {[%clk 0:00:38]} 71. Ke6 {[%clk 0:00:04]}  Ng2 {[%clk 0:00:37]} 72. Kd7 {[%clk 0:00:04]}  Nxf4 {[%clk 0:00:38]} 73. e6 {[%clk 0:00:04]}  Ra8 {[%clk 0:00:30]} 74. e7 {[%clk 0:00:04]}  Nd5 {[%clk 0:00:28]} 75. Rh4+ {[%clk 0:00:02]}  Kc5 {[%clk 0:00:23]} 76. Rh5 {[%clk 0:00:02]}  Ra7+ {[%clk 0:00:23]} 77. Kd8 {[%clk 0:00:03]}  Rxe7 {[%clk 0:00:23]} 78. Rxh3 {[%clk 0:00:03]}  Re1 {[%clk 0:00:20]} 79. Nd3+ {[%clk 0:00:03]}  Kd4 {[%clk 0:00:20]} 0-1


[Site "https://www.chess.com"]

[Event "Titled Tuesday Blitz May 03 Early 2022"]
[White "Lamaze, Simon"]
[Black "Oganian, Miran"]
[WhiteFideId "36069264"]
[BlackFideId "4122488"]
[WhiteElo "1999"]
[BlackElo "2357"]
[Result "0-1"]
[Round "02"]
[TimeControl "180+1"]
[Date "2022.05.03"]
[WhiteClock "0:00:22"]
[BlackClock "0:00:09"]

1. d4 {[%clk 0:03:00]}  e6 {[%clk 0:02:59]} 2. c4 {[%clk 0:03:00]}  d5 {[%clk 0:02:59]} 3. Nf3 {[%clk 0:02:59]}  a6 {[%clk 0:02:59]} 4. cxd5 {[%clk 0:02:56]}  exd5 {[%clk 0:03:00]} 5. g3 {[%clk 0:02:56]}  Nf6 {[%clk 0:03:01]} 6. Bg2 {[%clk 0:02:53]}  Be7 {[%clk 0:03:01]} 7. O-O {[%clk 0:02:54]}  O-O {[%clk 0:03:02]} 8. b3 {[%clk 0:02:54]}  c6 {[%clk 0:03:02]} 9. Ba3 {[%clk 0:02:54]}  Bxa3 {[%clk 0:03:00]} 10. Nxa3 {[%clk 0:02:55]}  Bg4 {[%clk 0:03:00]} 11. Ne1 {[%clk 0:02:52]}  Re8 {[%clk 0:02:59]} 12. Nf3 {[%clk 0:02:47]}  Ne4 {[%clk 0:02:59]} 13. Re1 {[%clk 0:02:37]}  Qf6 {[%clk 0:02:58]} 14. Nc2 {[%clk 0:02:23]}  Nd7 {[%clk 0:02:51]} 15. Ne3 {[%clk 0:02:18]}  Bh5 {[%clk 0:02:44]} 16. Rc1 {[%clk 0:01:58]}  Re7 {[%clk 0:02:44]} 17. Nf1 {[%clk 0:01:41]}  Rae8 {[%clk 0:02:42]} 18. e3 {[%clk 0:01:39]}  Ng5 {[%clk 0:02:26]} 19. N1d2 {[%clk 0:01:37]}  Bg4 {[%clk 0:02:23]} 20. h4 {[%clk 0:01:23]}  Ne4 {[%clk 0:02:21]} 21. Qc2 {[%clk 0:01:16]}  Bf5 {[%clk 0:01:59]} 22. Nxe4 {[%clk 0:01:14]}  Rxe4 {[%clk 0:01:51]} 23. Qc3 {[%clk 0:01:10]}  R4e7 {[%clk 0:01:46]} 24. Nd2 {[%clk 0:01:08]}  h6 {[%clk 0:01:44]} 25. a4 {[%clk 0:01:04]}  Nb6 {[%clk 0:01:44]} 26. Qc5 {[%clk 0:01:00]}  Nc8 {[%clk 0:01:43]} 27. b4 {[%clk 0:00:57]}  Nd6 {[%clk 0:01:41]} 28. b5 {[%clk 0:00:45]}  axb5 {[%clk 0:01:41]} 29. axb5 {[%clk 0:00:45]}  Nxb5 {[%clk 0:01:41]} 30. Bxd5 {[%clk 0:00:45]}  Nxd4 {[%clk 0:01:31]} 31. Bg2 {[%clk 0:00:43]}  Bg4 {[%clk 0:01:21]} 32. Bf1 {[%clk 0:00:29]}  Nf3+ {[%clk 0:01:12]} 33. Nxf3 {[%clk 0:00:29]}  Bxf3 {[%clk 0:01:13]} 34. Rb1 {[%clk 0:00:27]}  g5 {[%clk 0:01:10]} 35. Rb4 {[%clk 0:00:25]}  Re4 {[%clk 0:01:03]} 36. Rxe4 {[%clk 0:00:24]}  Rxe4 {[%clk 0:01:01]} 37. hxg5 {[%clk 0:00:20]}  hxg5 {[%clk 0:01:00]} 38. Rb1 {[%clk 0:00:21]}  b5 {[%clk 0:00:43]} 39. Rb4 {[%clk 0:00:20]}  Qe5 {[%clk 0:00:23]} 40. Qxe5 {[%clk 0:00:16]}  Rxe5 {[%clk 0:00:24]} 41. Bg2 {[%clk 0:00:16]}  Bxg2 {[%clk 0:00:23]} 42. Kxg2 {[%clk 0:00:17]}  Kf8 {[%clk 0:00:23]} 43. e4 {[%clk 0:00:17]}  Ke7 {[%clk 0:00:21]} 44. f4 {[%clk 0:00:17]}  gxf4 {[%clk 0:00:22]} 45. gxf4 {[%clk 0:00:18]}  Rc5 {[%clk 0:00:20]} 46. Kg3 {[%clk 0:00:18]}  Kd6 {[%clk 0:00:10]} 47. Kg4 {[%clk 0:00:18]}  Kc7 {[%clk 0:00:08]} 48. e5 {[%clk 0:00:18]}  Rc1 {[%clk 0:00:05]} 49. Kf5 {[%clk 0:00:18]}  Kb6 {[%clk 0:00:06]} 50. Rb2 {[%clk 0:00:18]}  c5 {[%clk 0:00:06]} 51. Kf6 {[%clk 0:00:18]}  Rf1 {[%clk 0:00:06]} 52. f5 {[%clk 0:00:19]}  b4 {[%clk 0:00:06]} 53. Rd2 {[%clk 0:00:18]}  c4 {[%clk 0:00:06]} 54. Rd6+ {[%clk 0:00:18]}  Kc5 {[%clk 0:00:06]} 55. Rd7 {[%clk 0:00:18]}  b3 {[%clk 0:00:07]} 56. Rxf7 {[%clk 0:00:18]}  b2 {[%clk 0:00:07]} 57. Rb7 {[%clk 0:00:19]}  b1=Q {[%clk 0:00:06]} 58. Rxb1 {[%clk 0:00:19]}  Rxb1 {[%clk 0:00:07]} 59. e6 {[%clk 0:00:20]}  c3 {[%clk 0:00:08]} 60. e7 {[%clk 0:00:21]}  Re1 {[%clk 0:00:08]} 61. Kg7 {[%clk 0:00:22]}  c2 {[%clk 0:00:08]} 62. f6 {[%clk 0:00:22]}  c1=Q {[%clk 0:00:09]} 63. f7 {[%clk 0:00:22]}  Qg5+ {[%clk 0:00:09]} 0-1


[Site "https://www.chess.com"]

[Event "Titled Tuesday Blitz May 03 Early 2022"]
[White "Lashkin, Jegor"]
[Black "Miszler, Levente"]
[WhiteFideId "13907808"]
[BlackFideId "763276"]
[WhiteElo "2368"]
[BlackElo "1966"]
[Result "1/2-1/2"]
[Round "02"]
[TimeControl "180+1"]
[Date "2022.05.03"]
[WhiteClock "0:01:11"]
[BlackClock "0:00:16"]

1. e4 {[%clk 0:03:00]}  e6 {[%clk 0:02:58]} 2. Nc3 {[%clk 0:02:58]}  d5 {[%clk 0:02:49]} 3. Nf3 {[%clk 0:02:58]}  d4 {[%clk 0:02:47]} 4. Ne2 {[%clk 0:02:58]}  c5 {[%clk 0:02:48]} 5. Ng3 {[%clk 0:02:57]}  Nc6 {[%clk 0:02:49]} 6. Bb5 {[%clk 0:02:57]}  Qc7 {[%clk 0:02:47]} 7. d3 {[%clk 0:02:57]}  a6 {[%clk 0:02:38]} 8. Bxc6+ {[%clk 0:02:57]}  Qxc6 {[%clk 0:02:39]} 9. a4 {[%clk 0:02:58]}  f6 {[%clk 0:02:37]} 10. e5 {[%clk 0:02:55]}  Bd7 {[%clk 0:02:35]} 11. O-O {[%clk 0:02:50]}  f5 {[%clk 0:02:14]} 12. Ng5 {[%clk 0:02:47]}  Ne7 {[%clk 0:02:10]} 13. c3 {[%clk 0:02:29]}  g6 {[%clk 0:02:06]} 14. cxd4 {[%clk 0:02:27]}  cxd4 {[%clk 0:02:07]} 15. Nf3 {[%clk 0:02:26]}  Qd5 {[%clk 0:02:02]} 16. Ne2 {[%clk 0:02:24]}  Nc6 {[%clk 0:01:52]} 17. Nf4 {[%clk 0:02:22]}  Qa5 {[%clk 0:01:49]} 18. Bd2 {[%clk 0:02:19]}  Bb4 {[%clk 0:01:50]} 19. Bxb4 {[%clk 0:02:12]}  Qxb4 {[%clk 0:01:51]} 20. h4 {[%clk 0:02:01]}  O-O {[%clk 0:01:43]} 21. Rc1 {[%clk 0:01:59]}  Rac8 {[%clk 0:01:40]} 22. h5 {[%clk 0:01:58]}  Kg7 {[%clk 0:01:33]} 23. Rc4 {[%clk 0:01:54]}  Qe7 {[%clk 0:01:27]} 24. hxg6 {[%clk 0:01:51]}  hxg6 {[%clk 0:01:27]} 25. Qe2 {[%clk 0:01:45]}  Rcd8 {[%clk 0:01:14]} 26. b4 {[%clk 0:01:29]}  Rh8 {[%clk 0:01:03]} 27. b5 {[%clk 0:01:27]}  g5 {[%clk 0:00:59]} 28. bxc6 {[%clk 0:01:27]}  Bxc6 {[%clk 0:01:00]} 29. Nxd4 {[%clk 0:01:15]}  gxf4 {[%clk 0:00:54]} 30. Nxc6 {[%clk 0:01:16]}  Qh4 {[%clk 0:00:53]} 31. f3 {[%clk 0:01:09]}  Qh2+ {[%clk 0:00:49]} 32. Kf2 {[%clk 0:01:09]}  Qg3+ {[%clk 0:00:50]} 33. Kg1 {[%clk 0:01:10]}  Rh1+ {[%clk 0:00:14]} 34. Kxh1 {[%clk 0:01:09]}  Rh8+ {[%clk 0:00:14]} 35. Kg1 {[%clk 0:01:10]}  Qh2+ {[%clk 0:00:14]} 36. Kf2 {[%clk 0:01:10]}  Qg3+ {[%clk 0:00:15]} 37. Kg1 {[%clk 0:01:11]}  Qh2+ {[%clk 0:00:15]} 38. Kf2 {[%clk 0:01:11]}  Qg3+ {[%clk 0:00:16]} 39. Kg1 {[%clk 0:01:11]} 1/2-1/2


[Site "https://www.chess.com"]

[Event "Titled Tuesday Blitz May 03 Early 2022"]
[White "Lazavik, Denis"]
[Black "Cunha, Lucas Aguiar"]
[WhiteFideId "13515110"]
[BlackFideId "2125404"]
[WhiteElo "2437"]
[BlackElo "2361"]
[Result "1-0"]
[Round "02"]
[TimeControl "180+1"]
[Date "2022.05.03"]
[WhiteClock "0:00:13"]
[BlackClock "0:00:04"]

1. d4 {[%clk 0:03:00]}  Nf6 {[%clk 0:02:59]} 2. c4 {[%clk 0:02:59]}  e6 {[%clk 0:02:59]} 3. Nf3 {[%clk 0:02:58]}  b6 {[%clk 0:02:59]} 4. g3 {[%clk 0:02:58]}  Ba6 {[%clk 0:02:59]} 5. b3 {[%clk 0:02:58]}  b5 {[%clk 0:03:00]} 6. Bg2 {[%clk 0:02:51]}  bxc4 {[%clk 0:03:00]} 7. Ne5 {[%clk 0:02:51]}  Bb4+ {[%clk 0:02:58]} 8. Bd2 {[%clk 0:02:50]}  cxb3 {[%clk 0:02:58]} 9. Bxb4 {[%clk 0:02:49]}  b2 {[%clk 0:02:58]} 10. Nc3 {[%clk 0:02:50]}  bxa1=Q {[%clk 0:02:58]} 11. Qxa1 {[%clk 0:02:51]}  d5 {[%clk 0:02:57]} 12. O-O {[%clk 0:02:50]}  Nfd7 {[%clk 0:02:55]} 13. Rd1 {[%clk 0:02:45]}  c5 {[%clk 0:02:54]} 14. dxc5 {[%clk 0:02:17]}  Nxe5 {[%clk 0:02:52]} 15. Nxd5 {[%clk 0:02:18]}  Nbc6 {[%clk 0:02:44]} 16. Bc3 {[%clk 0:01:47]}  exd5 {[%clk 0:02:04]} 17. Bxe5 {[%clk 0:01:46]}  Bc4 {[%clk 0:00:48]} 18. Bxg7 {[%clk 0:01:35]}  Rg8 {[%clk 0:00:47]} 19. Bf6 {[%clk 0:01:34]}  Qd7 {[%clk 0:00:47]} 20. Qc3 {[%clk 0:00:37]}  Bxa2 {[%clk 0:00:38]} 21. Qc2 {[%clk 0:00:30]}  Qe6 {[%clk 0:00:23]} 22. Qxa2 {[%clk 0:00:22]}  Qxf6 {[%clk 0:00:23]} 23. Qxd5 {[%clk 0:00:21]}  Rd8 {[%clk 0:00:10]} 24. Qxc6+ {[%clk 0:00:21]}  Qxc6 {[%clk 0:00:10]} 25. Bxc6+ {[%clk 0:00:21]}  Ke7 {[%clk 0:00:11]} 26. Ra1 {[%clk 0:00:22]}  Rc8 {[%clk 0:00:10]} 27. Rxa7+ {[%clk 0:00:22]}  Kf6 {[%clk 0:00:11]} 28. Bd5 {[%clk 0:00:21]}  Rgf8 {[%clk 0:00:10]} 29. c6 {[%clk 0:00:21]}  Ra8 {[%clk 0:00:09]} 30. Rb7 {[%clk 0:00:20]}  Ra1+ {[%clk 0:00:08]} 31. Kg2 {[%clk 0:00:20]}  Rc1 {[%clk 0:00:08]} 32. h4 {[%clk 0:00:19]}  Ke5 {[%clk 0:00:08]} 33. Bf3 {[%clk 0:00:17]}  h6 {[%clk 0:00:07]} 34. Rb5+ {[%clk 0:00:17]}  Kd6 {[%clk 0:00:07]} 35. Rh5 {[%clk 0:00:17]}  Rh8 {[%clk 0:00:07]} 36. Rf5 {[%clk 0:00:17]}  Ke6 {[%clk 0:00:07]} 37. Rf4 {[%clk 0:00:17]}  Ke7 {[%clk 0:00:06]} 38. Rd4 {[%clk 0:00:17]}  Rd8 {[%clk 0:00:06]} 39. Re4+ {[%clk 0:00:17]}  Kf6 {[%clk 0:00:06]} 40. Ra4 {[%clk 0:00:17]}  Rdd1 {[%clk 0:00:05]} 41. Rf4+ {[%clk 0:00:14]}  Ke7 {[%clk 0:00:04]} 42. Bh5 {[%clk 0:00:13]}  Rg1+ {[%clk 0:00:04]} 43. Kh3 {[%clk 0:00:13]}  Rh1+ {[%clk 0:00:04]} 44. Kg4 {[%clk 0:00:14]}  Rc4 {[%clk 0:00:04]} 45. Rxc4 {[%clk 0:00:13]} 1-0


[Site "https://www.chess.com"]

[Event "Titled Tuesday Blitz May 03 Early 2022"]
[White "Le, Tuan Minh"]
[Black "Tatarinov, Dmitry"]
[WhiteFideId "12401153"]
[BlackFideId "24160067"]
[WhiteElo "2450"]
[BlackElo "2302"]
[Result "1-0"]
[Round "02"]
[TimeControl "180+1"]
[Date "2022.05.03"]
[WhiteClock "0:01:31"]
[BlackClock "0:00:20"]

1. d4 {[%clk 0:03:00]}  d5 {[%clk 0:02:59]} 2. Nf3 {[%clk 0:03:01]}  e6 {[%clk 0:02:59]} 3. Bf4 {[%clk 0:03:01]}  c5 {[%clk 0:02:59]} 4. c3 {[%clk 0:03:01]}  Bd6 {[%clk 0:02:59]} 5. Bg3 {[%clk 0:03:00]}  Qb6 {[%clk 0:02:55]} 6. Qc2 {[%clk 0:02:56]}  cxd4 {[%clk 0:02:53]} 7. cxd4 {[%clk 0:02:55]}  Nc6 {[%clk 0:02:54]} 8. Bxd6 {[%clk 0:02:55]}  Nxd4 {[%clk 0:02:53]} 9. Nxd4 {[%clk 0:02:53]}  Qxd6 {[%clk 0:02:53]} 10. Nb5 {[%clk 0:02:53]}  Qb4+ {[%clk 0:02:52]} 11. N1c3 {[%clk 0:02:30]}  d4 {[%clk 0:02:37]} 12. a3 {[%clk 0:02:00]}  Qa5 {[%clk 0:02:36]} 13. Nxd4 {[%clk 0:02:00]}  Bd7 {[%clk 0:02:35]} 14. e3 {[%clk 0:01:59]}  Rc8 {[%clk 0:02:35]} 15. Be2 {[%clk 0:01:59]}  Nf6 {[%clk 0:02:34]} 16. O-O {[%clk 0:01:59]}  O-O {[%clk 0:02:34]} 17. Qb3 {[%clk 0:01:58]}  a6 {[%clk 0:02:27]} 18. Rfd1 {[%clk 0:01:55]}  Rc7 {[%clk 0:02:26]} 19. Rac1 {[%clk 0:01:53]}  Rfc8 {[%clk 0:02:27]} 20. Qb4 {[%clk 0:01:53]}  Qe5 {[%clk 0:02:23]} 21. h3 {[%clk 0:01:53]}  h6 {[%clk 0:02:23]} 22. Nf3 {[%clk 0:01:51]}  Qf5 {[%clk 0:02:19]} 23. Bd3 {[%clk 0:01:49]}  Qh5 {[%clk 0:02:18]} 24. Ne2 {[%clk 0:01:47]}  Bc6 {[%clk 0:02:14]} 25. Nf4 {[%clk 0:01:44]}  Bxf3 {[%clk 0:00:41]} 26. Nxh5 {[%clk 0:01:42]}  Rxc1 {[%clk 0:00:41]} 27. Nxf6+ {[%clk 0:01:42]}  gxf6 {[%clk 0:00:40]} 28. Rxc1 {[%clk 0:01:43]}  Rxc1+ {[%clk 0:00:41]} 29. Kh2 {[%clk 0:01:43]}  Bc6 {[%clk 0:00:41]} 30. Be4 {[%clk 0:01:35]}  Bxe4 {[%clk 0:00:35]} 31. Qxe4 {[%clk 0:01:36]}  Rc6 {[%clk 0:00:36]} 32. b4 {[%clk 0:01:35]}  Kg7 {[%clk 0:00:33]} 33. a4 {[%clk 0:01:35]}  Rb6 {[%clk 0:00:32]} 34. Qd4 {[%clk 0:01:34]}  Rc6 {[%clk 0:00:31]} 35. f4 {[%clk 0:01:34]}  b5 {[%clk 0:00:31]} 36. axb5 {[%clk 0:01:34]}  axb5 {[%clk 0:00:32]} 37. Qd7 {[%clk 0:01:34]}  Rb6 {[%clk 0:00:30]} 38. e4 {[%clk 0:01:34]}  Rb8 {[%clk 0:00:30]} 39. h4 {[%clk 0:01:32]}  h5 {[%clk 0:00:30]} 40. Qc7 {[%clk 0:01:31]}  Ra8 {[%clk 0:00:28]} 41. Qc5 {[%clk 0:01:32]}  Rb8 {[%clk 0:00:27]} 42. Qxh5 {[%clk 0:01:32]}  Rh8 {[%clk 0:00:21]} 43. Qxb5 {[%clk 0:01:31]}  Rxh4+ {[%clk 0:00:21]} 44. Kg3 {[%clk 0:01:31]}  Rh1 {[%clk 0:00:21]} 45. Qc5 {[%clk 0:01:31]}  Rc1 {[%clk 0:00:20]} 46. Qxc1 {[%clk 0:01:31]} 1-0


[Site "https://www.chess.com"]

[Event "Titled Tuesday Blitz May 03 Early 2022"]
[White "Legenia, Artem"]
[Black "Karolczuk, Iwo"]
[WhiteFideId "14136945"]
[BlackFideId "21816972"]
[WhiteElo "1936"]
[BlackElo "2277"]
[Result "0-1"]
[Round "02"]
[TimeControl "180+1"]
[Date "2022.05.03"]
[WhiteClock "0:00:18"]
[BlackClock "0:00:04"]

1. d4 {[%clk 0:02:59]}  Nf6 {[%clk 0:02:57]} 2. Nf3 {[%clk 0:02:58]}  g6 {[%clk 0:02:57]} 3. Bf4 {[%clk 0:02:58]}  Bg7 {[%clk 0:02:56]} 4. e3 {[%clk 0:02:57]}  d6 {[%clk 0:02:56]} 5. h3 {[%clk 0:02:58]}  O-O {[%clk 0:02:55]} 6. c3 {[%clk 0:02:52]}  Nbd7 {[%clk 0:02:55]} 7. Be2 {[%clk 0:02:50]}  b6 {[%clk 0:02:52]} 8. O-O {[%clk 0:02:50]}  Bb7 {[%clk 0:02:52]} 9. Nbd2 {[%clk 0:02:51]}  Qe8 {[%clk 0:02:48]} 10. Bh2 {[%clk 0:02:49]}  a6 {[%clk 0:02:42]} 11. Qc2 {[%clk 0:02:49]}  e5 {[%clk 0:02:38]} 12. dxe5 {[%clk 0:02:47]}  Nxe5 {[%clk 0:02:34]} 13. Nxe5 {[%clk 0:02:46]}  dxe5 {[%clk 0:02:35]} 14. Bf3 {[%clk 0:02:45]}  e4 {[%clk 0:02:33]} 15. Be2 {[%clk 0:02:45]}  Qe7 {[%clk 0:02:28]} 16. Rad1 {[%clk 0:02:44]}  Rac8 {[%clk 0:02:08]} 17. Rfe1 {[%clk 0:02:43]}  Nd7 {[%clk 0:02:06]} 18. Nc4 {[%clk 0:02:39]}  Nc5 {[%clk 0:02:00]} 19. Bf1 {[%clk 0:02:02]}  Rfd8 {[%clk 0:01:22]} 20. Rxd8+ {[%clk 0:01:58]}  Rxd8 {[%clk 0:01:20]} 21. Rd1 {[%clk 0:01:58]}  Nd3 {[%clk 0:01:07]} 22. Bxd3 {[%clk 0:01:35]}  exd3 {[%clk 0:01:05]} 23. Rxd3 {[%clk 0:01:35]}  Be4 {[%clk 0:01:02]} 24. Rxd8+ {[%clk 0:01:34]}  Qxd8 {[%clk 0:01:02]} 25. Qd2 {[%clk 0:01:35]}  Qe7 {[%clk 0:00:35]} 26. Bg3 {[%clk 0:01:34]}  h5 {[%clk 0:00:34]} 27. Na3 {[%clk 0:01:15]}  b5 {[%clk 0:00:31]} 28. Nc2 {[%clk 0:01:15]}  c5 {[%clk 0:00:28]} 29. Ne1 {[%clk 0:01:14]}  h4 {[%clk 0:00:20]} 30. Bf4 {[%clk 0:01:13]}  g5 {[%clk 0:00:20]} 31. Bh2 {[%clk 0:01:12]}  Qe6 {[%clk 0:00:18]} 32. Qd8+ {[%clk 0:01:08]}  Kh7 {[%clk 0:00:17]} 33. Qxg5 {[%clk 0:01:08]}  Bf6 {[%clk 0:00:11]} 34. Qxc5 {[%clk 0:00:51]}  Qxa2 {[%clk 0:00:10]} 35. Qh5+ {[%clk 0:00:51]}  Kg7 {[%clk 0:00:10]} 36. Qg4+ {[%clk 0:00:50]}  Bg6 {[%clk 0:00:10]} 37. Bf4 {[%clk 0:00:39]}  Qb1 {[%clk 0:00:08]} 38. Kf1 {[%clk 0:00:35]}  Qxb2 {[%clk 0:00:07]} 39. Bg5 {[%clk 0:00:32]}  Bxc3 {[%clk 0:00:07]} 40. Qxh4 {[%clk 0:00:22]}  Qd2 {[%clk 0:00:06]} 41. f3 {[%clk 0:00:19]}  Qd1 {[%clk 0:00:03]} 42. Qf2 {[%clk 0:00:19]}  Bd3+ {[%clk 0:00:03]} 43. Kg1 {[%clk 0:00:19]}  Bxe1 {[%clk 0:00:04]} 44. Qb2+ {[%clk 0:00:18]}  Bc3+ {[%clk 0:00:04]} 0-1


[Site "https://www.chess.com"]

[Event "Titled Tuesday Blitz May 03 Early 2022"]
[White "Liyanage, Ranindu Dilshan"]
[Black "Deac, Bogdan-Daniel"]
[WhiteFideId "9915834"]
[BlackFideId "1226380"]
[WhiteElo "1858"]
[BlackElo "2648"]
[Result "1-0"]
[Round "02"]
[TimeControl "180+1"]
[Date "2022.05.03"]
[WhiteClock "0:00:28"]
[BlackClock "0:00:02"]

1. e4 {[%clk 0:03:00]}  c5 {[%clk 0:03:00]} 2. Nf3 {[%clk 0:03:01]}  Nc6 {[%clk 0:03:00]} 3. d4 {[%clk 0:03:01]}  cxd4 {[%clk 0:03:00]} 4. Nxd4 {[%clk 0:03:02]}  g6 {[%clk 0:02:59]} 5. c4 {[%clk 0:03:00]}  Bg7 {[%clk 0:02:58]} 6. Be3 {[%clk 0:03:00]}  Qb6 {[%clk 0:02:58]} 7. Nb5 {[%clk 0:02:58]}  Qa5+ {[%clk 0:02:57]} 8. Bd2 {[%clk 0:02:54]}  Qd8 {[%clk 0:02:55]} 9. Bc3 {[%clk 0:02:50]}  Nf6 {[%clk 0:02:55]} 10. Nd2 {[%clk 0:02:45]}  O-O {[%clk 0:02:50]} 11. Bd3 {[%clk 0:02:43]}  b6 {[%clk 0:02:24]} 12. O-O {[%clk 0:02:37]}  Bb7 {[%clk 0:02:23]} 13. e5 {[%clk 0:02:34]}  Ne8 {[%clk 0:02:21]} 14. f4 {[%clk 0:02:35]}  a6 {[%clk 0:02:20]} 15. Na3 {[%clk 0:02:33]}  d6 {[%clk 0:02:16]} 16. Nf3 {[%clk 0:02:33]}  Nc7 {[%clk 0:02:04]} 17. Nc2 {[%clk 0:02:10]}  Ne6 {[%clk 0:01:53]} 18. f5 {[%clk 0:01:55]}  Nc5 {[%clk 0:01:51]} 19. e6 {[%clk 0:01:39]}  fxe6 {[%clk 0:01:11]} 20. fxg6 {[%clk 0:01:30]}  h6 {[%clk 0:01:10]} 21. Ne3 {[%clk 0:01:16]}  Qd7 {[%clk 0:00:46]} 22. Bc2 {[%clk 0:01:11]}  b5 {[%clk 0:00:26]} 23. Bxg7 {[%clk 0:01:04]}  Kxg7 {[%clk 0:00:26]} 24. Qd2 {[%clk 0:01:05]}  bxc4 {[%clk 0:00:22]} 25. Nxc4 {[%clk 0:01:06]}  e5 {[%clk 0:00:20]} 26. b4 {[%clk 0:00:55]}  Ne6 {[%clk 0:00:13]} 27. Nb6 {[%clk 0:00:55]}  Qc7 {[%clk 0:00:12]} 28. Nxa8 {[%clk 0:00:53]}  Bxa8 {[%clk 0:00:12]} 29. Nh4 {[%clk 0:00:51]}  Ncd4 {[%clk 0:00:06]} 30. Bf5 {[%clk 0:00:51]}  Qb6 {[%clk 0:00:02]} 31. Kh1 {[%clk 0:00:51]}  Nf4 {[%clk 0:00:02]} 32. Bg4 {[%clk 0:00:28]} 1-0


[Site "https://www.chess.com"]